bitfinex/quotes_BTCUSD_20240918
["timestamp","ask_amount","ask_price","bid_price","bid_amount"]
[1726666234449,0.166629,60014.0,60010.0,0.189299]
[1726666234701,0.333227,60020.0,60011.0,0.00333242]
[1726666234702,0.166617,60018.0,60011.0,0.00333242]
[1726666234938,0.166617,60018.0,60012.0,0.0922]
[1726666234939,0.16305367,60018.0,60012.0,0.0922]
[1726666235221,0.166622,60016.0,60012.0,0.280671]
[1726666235457,0.16305367,60018.0,60013.0,0.166629]
[1726666235740,0.16305367,60018.0,60013.0,0.02184]
[1726666235946,0.166627,60014.0,60013.0,0.02184]
[1726666236422,1.35244567,60014.0,60013.0,0.02184]
[1726666236648,1.166452,60011.0,60010.0,0.000821]
[1726666236914,1.32950567,60011.0,60010.0,0.000821]
[1726666237663,1.35250567,60011.0,60010.0,0.000821]
[1726666238574,1.01923367,60011.0,60010.0,0.000821]
[1726666238835,0.99623367,60011.0,60010.0,0.000821]
[1726666239960,1.00223367,60011.0,60010.0,0.000821]
[1726666240716,0.006,60011.0,60010.0,0.000821]
[1726666240934,0.006,60011.0,60010.0,0.167459]
[1726666241671,0.006,60011.0,60010.0,0.000821]
[1726666241912,0.172636,60011.0,60010.0,0.000821]
[1726666242124,0.505908,60011.0,60010.0,0.000821]
[1726666242559,0.66896167,60011.0,60010.0,0.000821]
[1726666243509,0.99723367,60011.0,60010.0,0.000821]
[1726666243979,1.02023367,60011.0,60010.0,0.000821]
[1726666244184,1.17343194,60011.0,60010.0,0.000821]
[1726666244398,1.50670394,60011.0,60010.0,0.000821]
[1726666245520,1.02023367,60011.0,60010.0,0.000821]
[1726666245741,0.68596167,60011.0,60010.0,0.000821]
[1726666245970,1.01923367,60011.0,60010.0,0.000821]
[1726666246242,1.03323367,60011.0,60010.0,0.000821]
[1726666246463,1.01923367,60011.0,60010.0,0.000821]
[1726666246893,1.03023367,60011.0,60010.0,0.001821]
[1726666248524,0.67396167,60011.0,60010.0,0.001821]
[1726666248982,0.17405367,60011.0,60010.0,0.001821]
[1726666249147,0.17405367,60011.0,60010.0,0.168459]
[1726666249374,0.17405367,60011.0,60010.0,0.001821]
[1726666249579,0.011,60011.0,60010.0,0.168459]
[1726666249749,0.011,60011.0,60010.0,0.50506836]
[1726666249952,0.011,60011.0,60010.0,0.83834536]
[1726666250161,0.001642,60020.0,60019.0,0.49984]
[1726666250401,0.097542,60041.0,60019.0,0.49984]
[1726666250402,0.001642,60041.0,60031.0,0.333161]
[1726666250630,0.001642,60041.0,60019.0,0.82902172]
[1726666250631,0.166567,60036.0,60032.0,0.166577]
[1726666250842,0.001642,60041.0,60034.0,0.333144]
[1726666251049,0.001642,60041.0,60030.0,0.00333126]
[1726666251050,0.001642,60041.0,60040.0,0.499666]
[1726666251256,0.001642,60041.0,60040.0,0.832777]
[1726666252332,0.001642,60041.0,60040.0,0.166555]
[1726666252580,0.001642,60041.0,60040.0,0.521506]
[1726666252804,0.001642,60041.0,60040.0,0.188395]
[1726666253021,0.168194,60041.0,60040.0,0.02184]
[1726666253513,0.501299,60041.0,60040.0,0.02184]
[1726666253743,0.501299,60041.0,60034.0,0.166571]
[1726666253744,0.166562,60038.0,60034.0,0.166571]
[1726666254014,0.005642,60041.0,60030.0,0.002]
[1726666254308,0.005642,60041.0,60039.0,0.166557]
[1726666254530,0.001642,60041.0,60037.0,0.166562]
[1726666254753,0.001642,60041.0,60027.0,0.06]
[1726666254984,0.166564,60037.0,60026.0,0.102]
[1726666255207,0.166564,60037.0,60033.0,0.166574]
[1726666255688,0.16305367,60040.0,60033.0,0.02184]
[1726666255912,0.32961067,60040.0,60035.0,0.166567]
[1726666256133,0.166559,60039.0,60035.0,0.166567]
[1726666256359,0.32961267,60039.0,60035.0,0.02184]
[1726666256601,0.16305367,60039.0,60035.0,0.02184]
[1726666256819,0.499699,60036.0,60035.0,0.02184]
[1726666257038,0.99588567,60036.0,60035.0,0.02184]
[1726666257723,1.35201867,60036.0,60035.0,0.02184]
[1726666257994,1.01888567,60036.0,60035.0,0.02184]
[1726666258191,0.18605367,60036.0,60019.0,0.075]
[1726666258419,0.166598,60025.0,60017.0,0.333237]
[1726666258652,0.1666,60024.0,60019.0,0.166612]
[1726666258876,0.333174,60029.0,60019.0,0.333223]
[1726666259100,0.166593,60027.0,60022.0,0.166603]
[1726666259352,0.166602,60023.0,60015.0,0.333248]
[1726666259584,0.166597,60025.0,60022.0,0.02184]
[1726666260032,0.166602,60023.0,60022.0,0.02184]
[1726666260539,1.01906567,60023.0,60022.0,0.02184]
[1726666260759,1.01906567,60023.0,60010.0,0.000821]
[1726666260760,0.83311,60016.0,60015.0,0.001]
[1726666260986,1.32940767,60016.0,60015.0,0.001]
[1726666261201,0.83318,60011.0,60010.0,0.000821]
[1726666261426,0.99623367,60011.0,60010.0,0.000821]
[1726666261900,1.32950567,60011.0,60010.0,0.000821]
[1726666262361,1.35250567,60011.0,60010.0,0.000821]
[1726666262614,1.68577767,60011.0,60010.0,0.000821]
[1726666262850,1.78577767,60011.0,60010.0,0.000821]
[1726666263091,1.81023581,60011.0,60010.0,0.000821]
[1726666263326,1.78577767,60011.0,60010.0,0.000821]
[1726666263773,1.79577767,60011.0,60010.0,0.000821]
[1726666264001,1.78577767,60011.0,60010.0,0.000821]
[1726666264468,1.79577767,60011.0,60010.0,0.000821]
[1726666265867,1.95886325,60011.0,60010.0,0.000821]
[1726666266108,1.79577767,60011.0,60010.0,0.000821]
[1726666267331,1.82192549,60011.0,60010.0,0.000821]
[1726666268271,2.18519749,60011.0,60010.0,0.000821]
[1726666269469,1.85192549,60011.0,60010.0,0.000821]
[1726666269921,1.84192549,60011.0,60010.0,0.000821]
[1726666269922,1.85592549,60011.0,60010.0,0.000821]
[1726666270144,1.86572505,60011.0,60010.0,0.000821]
[1726666270363,1.85172505,60011.0,60010.0,0.000821]
[1726666270587,2.24499705,60011.0,60010.0,0.000821]
[1726666270804,2.51918263,60011.0,60010.0,0.000821]
[1726666271031,2.51918263,60011.0,59998.0,0.000821]
[1726666271032,1.73081572,59999.0,59998.0,0.000821]
[1726666271251,1.91686939,59999.0,59998.0,0.000821]
[1726666273105,1.35273667,59999.0,59998.0,0.000821]
[1726666273576,1.32973667,59999.0,59998.0,0.000821]
[1726666274087,1.34373667,59999.0,59998.0,0.000821]
[1726666274321,1.32973667,59999.0,59998.0,0.000821]
[1726666274542,1.34273667,59999.0,59998.0,0.000821]
[1726666275041,0.69906067,59999.0,59998.0,0.000821]
[1726666275739,1.26319339,59999.0,59998.0,0.000821]
[1726666276668,1.03239867,59999.0,59998.0,0.000821]
[1726666277327,1.36573667,59999.0,59998.0,0.000821]
[1726666278452,1.72522593,59999.0,59998.0,0.000821]
[1726666278675,1.44107017,59999.0,59998.0,0.000821]
[1726666278909,1.39188793,59999.0,59998.0,0.000821]
[1726666280054,1.36573667,59999.0,59998.0,0.000821]
[1726666280948,1.69907467,59999.0,59998.0,0.000821]
[1726666281657,2.12741267,59999.0,59998.0,0.000821]
[1726666281878,2.51066555,59999.0,59998.0,0.000821]
[1726666282128,2.51066555,59999.0,59998.0,1e-06]
[1726666283049,2.49766555,59999.0,59998.0,1e-06]
[1726666283291,2.51166555,59999.0,59998.0,1e-06]
[1726666283789,2.55766555,59999.0,59998.0,1e-06]
[1726666284031,2.55766555,59999.0,59990.0,0.00011]
[1726666284032,2.21740072,59991.0,59990.0,0.00011]
[1726666284284,2.38045439,59991.0,59990.0,0.00011]
[1726666284769,2.77383739,59991.0,59990.0,0.00011]
[1726666286385,2.78359059,59991.0,59990.0,0.00011]
[1726666287154,2.82374995,59991.0,59990.0,0.00011]
[1726666287378,2.46036695,59991.0,59990.0,0.00011]
[1726666287608,2.03423075,59991.0,59990.0,0.00011]
[1726666288281,2.36761375,59991.0,59990.0,0.00011]
[1726666288748,1.82643603,59991.0,59990.0,0.00011]
[1726666288982,1.80027667,59991.0,59990.0,0.00011]
[1726666289615,1.80027667,59991.0,59990.0,0.000931]
[1726666289616,1.78627667,59991.0,59990.0,0.000931]
[1726666289842,1.80027667,59991.0,59990.0,0.000931]
[1726666290290,1.78627667,59991.0,59990.0,0.000931]
[1726666290560,1.80027667,59991.0,59990.0,0.000931]
[1726666291444,1.46689367,59991.0,59990.0,0.000931]
[1726666292382,2.03107139,59991.0,59990.0,0.000931]
[1726666292890,2.36445439,59991.0,59990.0,0.000931]
[1726666295473,2.39445439,59991.0,59990.0,0.000931]
[1726666296253,2.42061327,59991.0,59990.0,0.000931]
[1726666297494,2.75399627,59991.0,59990.0,0.000931]
[1726666297745,2.75399627,59991.0,59979.0,0.000822]
[1726666297746,0.49751672,59980.0,59979.0,0.000822]
[1726666298024,2.01734639,59980.0,59979.0,0.000822]
[1726666298257,2.35079039,59980.0,59979.0,0.000822]
[1726666298506,2.37695366,59980.0,59979.0,0.000822]
[1726666299010,2.04350966,59980.0,59979.0,0.000822]
[1726666300528,2.05550966,59980.0,59979.0,0.000822]
[1726666300752,1.82471494,59980.0,59979.0,0.000822]
[1726666300968,1.81271494,59980.0,59979.0,0.000822]
[1726666301190,1.82671494,59980.0,59979.0,0.000822]
[1726666301864,1.49327094,59980.0,59979.0,0.000822]
[1726666302123,1.39327094,59980.0,59979.0,0.000822]
[1726666303501,1.37927094,59980.0,59979.0,0.000822]
[1726666303734,1.36110767,59980.0,59979.0,0.000822]
[1726666304202,1.69455167,59980.0,59979.0,0.000822]
[1726666304430,1.92534639,59980.0,59979.0,0.000822]
[1726666304853,1.59190239,59980.0,59979.0,0.000822]
[1726666305327,1.36110767,59980.0,59979.0,0.000822]
[1726666306050,1.69455167,59980.0,59979.0,0.000822]
[1726666306323,1.69455167,59980.0,59971.0,0.0039031]
[1726666306324,1.14255895,59980.0,59971.0,0.0039031]
[1726666306564,0.3438557,59959.0,59958.0,0.00053]
[1726666306790,1.50759237,59959.0,59958.0,0.00053]
[1726666307009,1.84115337,59959.0,59958.0,0.00053]
[1726666307897,1.190561,59954.0,59953.0,0.0039031]
[1726666308122,1.9185427,59954.0,59953.0,0.0039031]
[1726666308350,0.002,59939.0,59928.0,0.12462673]
[1726666308626,0.18605367,59938.0,59933.0,1.00051693]
[1726666308845,0.18605367,59938.0,59922.0,0.1276]
[1726666308846,0.166847,59935.0,59928.0,0.25317903]
[1726666309072,0.333684,59937.0,59928.0,0.25317903]
[1726666309073,0.333684,59937.0,59933.0,0.02184]
[1726666309338,0.333684,59937.0,59929.0,0.00333675]
[1726666309339,0.16685,59934.0,59929.0,0.00333675]
[1726666309583,0.166845,59936.0,59929.0,0.02517675]
[1726666309813,0.002,59946.0,59929.0,0.02517675]
[1726666309814,0.023,59945.0,59929.0,0.02517675]
[1726666310012,0.166846,59936.0,59929.0,0.02517675]
[1726666310280,0.333687,59937.0,59929.0,0.02517675]
[1726666310504,0.333687,59937.0,59929.0,0.02184]
[1726666310722,0.16305367,59937.0,59929.0,0.02184]
[1726666310950,0.166861,59930.0,59929.0,0.02184]
[1726666311194,0.500583,59930.0,59929.0,0.02184]
[1726666311435,0.023,59946.0,59930.0,0.0817]
[1726666311666,0.001,59937.0,59932.0,0.33371]
[1726666311893,0.16305367,59945.0,59933.0,0.23467531]
[1726666312121,0.333657,59942.0,59933.0,0.23467531]
[1726666312341,0.333657,59942.0,59933.0,0.02517628]
[1726666312588,0.166839,59938.0,59933.0,0.02517628]
[1726666312877,0.023,59955.0,59933.0,0.25651531]
[1726666313121,0.333642,59945.0,59937.0,0.166841]
[1726666313386,0.333642,59945.0,59939.0,0.166834]
[1726666313387,0.16682,59945.0,59939.0,0.166834]
[1726666313606,0.333627,59948.0,59940.0,0.00333607]
[1726666313800,0.166823,59944.0,59940.0,0.02184]
[1726666314060,0.166825,59943.0,59940.0,0.02184]
[1726666314745,0.16683,59941.0,59940.0,0.02184]
[1726666314999,0.500575,59931.0,59924.0,0.0969]
[1726666315236,0.500625,59925.0,59924.0,0.0969]
[1726666315475,0.500634,59924.0,59923.0,0.00045]
[1726666315710,0.99744367,59924.0,59923.0,0.00045]
[1726666315937,1.33119967,59924.0,59923.0,0.00045]
[1726666316397,1.35419967,59924.0,59923.0,0.00045]
[1726666316633,0.834445,59920.0,59912.0,0.0031692]
[1726666316857,0.66372067,59920.0,59912.0,0.00650716]
[1726666317078,0.66372067,59920.0,59912.0,0.0031692]
[1726666317079,0.99749867,59920.0,59912.0,0.0031692]
[1726666317307,1.35427667,59920.0,59912.0,0.0031692]
[1726666317997,1.50950073,59920.0,59912.0,0.0031692]
[1726666318221,1.94327873,59920.0,59912.0,0.0031692]
[1726666318453,1.86965467,59920.0,59912.0,0.0031692]
[1726666318662,1.87865467,59920.0,59912.0,0.0031692]
[1726666319351,1.90865467,59920.0,59912.0,0.0031692]
[1726666319564,1.89965467,59920.0,59912.0,0.0031692]
[1726666319792,2.06274025,59920.0,59912.0,0.0031692]
[1726666320249,1.3003,59916.0,59912.0,0.0031692]
[1726666320493,1.28092403,59910.0,59909.0,0.00011]
[1726666320704,1.6878117,59910.0,59909.0,0.00011]
[1726666320935,2.0216457,59910.0,59909.0,0.00011]
[1726666321719,2.0216457,59910.0,59888.0,0.25]
[1726666321720,1.168828,59889.0,59888.0,0.25]
[1726666321971,1.35488167,59889.0,59888.0,0.25]
[1726666322213,0.16305367,59889.0,59888.0,0.25]
[1726666322473,0.66397967,59889.0,59888.0,0.27184]
[1726666322743,1.45688167,59889.0,59888.0,0.25]
[1726666323289,1.86486421,59889.0,59888.0,0.25]
[1726666323532,2.0221717,59889.0,59888.0,0.25]
[1726666323773,1.79083267,59889.0,59888.0,0.25]
[1726666324068,2.0221717,59889.0,59888.0,0.25]
[1726666324984,2.3631227,59889.0,59888.0,0.24023437]
[1726666325218,2.0291717,59889.0,59888.0,0.24023437]
[1726666325436,2.0221717,59889.0,59888.0,0.24023437]
[1726666325661,2.0483749,59889.0,59888.0,0.24023437]
[1726666325891,2.0623749,59889.0,59888.0,0.24023437]
[1726666326104,2.0483749,59889.0,59888.0,0.24023437]
[1726666326328,2.21146048,59889.0,59888.0,0.24023437]
[1726666326550,2.25546048,59889.0,59888.0,0.17642211]
[1726666326792,2.58941148,59889.0,59888.0,0.08399002]
[1726666327071,1.194063,59877.0,59876.0,0.0062247]
[1726666327329,1.9224737,59877.0,59876.0,0.0062247]
[1726666327765,2.04867924,59877.0,59876.0,0.0062247]
[1726666328219,2.0224737,59877.0,59876.0,0.0062247]
[1726666328453,2.3564917,59877.0,59876.0,0.0062247]
[1726666328691,2.0224737,59877.0,59876.0,0.0062247]
[1726666329168,1.6654557,59877.0,59876.0,0.0062247]
[1726666329412,0.334004,59880.0,59876.0,0.0070477]
[1726666329634,0.334006,59880.0,59876.0,0.1037477]
[1726666329862,0.28046545,59898.0,59876.0,0.1255877]
[1726666329863,0.002,59887.0,59876.0,0.1255877]
[1726666330083,0.014,59877.0,59876.0,0.1255877]
[1726666330532,0.16305367,59886.0,59876.0,0.1255877]
[1726666330533,0.334003,59880.0,59876.0,0.1255877]
[1726666330753,0.167009,59877.0,59876.0,0.1255877]
[1726666330975,0.167009,59877.0,59876.0,0.0288877]
[1726666331188,0.501027,59877.0,59876.0,0.0288877]
[1726666331720,0.333992,59882.0,59876.0,0.0288877]
[1726666331941,0.166996,59882.0,59876.0,0.0288877]
[1726666332178,0.014,59880.0,59876.0,0.0288877]
[1726666332412,0.16305367,59880.0,59876.0,0.0288877]
[1726666332631,0.501027,59877.0,59876.0,0.0288877]
[1726666332864,1.00409867,59877.0,59876.0,0.0288877]
[1726666333089,1.00409867,59877.0,59876.0,0.0070477]
[1726666333310,1.33811667,59877.0,59876.0,0.0070477]
[1726666333538,1.00209867,59877.0,59876.0,0.0070477]
[1726666333818,0.66408067,59877.0,59876.0,0.0070477]
[1726666334081,0.99809867,59877.0,59876.0,0.0070477]
[1726666334334,0.66408067,59877.0,59876.0,0.0070477]
[1726666334575,0.99809867,59877.0,59876.0,0.0070477]
[1726666334822,0.167009,59877.0,59876.0,0.0070477]
[1726666335049,0.02620374,59888.0,59876.0,0.0070477]
[1726666335050,0.334,59881.0,59876.0,0.0745477]
[1726666335305,0.002,59897.0,59877.0,0.00333969]
[1726666335552,0.1107,59905.0,59877.0,0.00333969]
[1726666335553,0.333945,59890.0,59881.0,0.333994]
[1726666335768,0.002,59890.0,59878.0,0.0804]
[1726666335994,0.333959,59888.0,59881.0,0.0675]
[1726666336219,0.333935,59892.0,59878.0,0.0804]
[1726666336443,0.49698867,59892.0,59882.0,0.333989]
[1726666336708,0.166979,59888.0,59878.0,0.0804]
[1726666336938,0.002,59906.0,59883.0,0.03333923]
[1726666337153,0.007,59890.0,59884.0,0.03]
[1726666337382,0.007,59890.0,59889.0,0.500926]
[1726666337631,0.007,59890.0,59889.0,1.168828]
[1726666337865,0.007,59890.0,59887.0,0.26133903]
[1726666337866,0.333849,59908.0,59900.0,0.333889]
[1726666338115,0.002,59921.0,59906.0,0.333856]
[1726666338374,0.002,59921.0,59904.0,0.166932]
[1726666338375,0.333826,59912.0,59904.0,0.166932]
[1726666338616,0.333826,59912.0,59902.0,0.64091403]
[1726666338617,0.02618972,59915.0,59905.0,0.16693]
[1726666338842,0.333785,59919.0,59907.0,0.333849]
[1726666339072,0.333733,59929.0,59907.0,0.23133903]
[1726666339073,0.02618959,59929.0,59907.0,0.23133903]
[1726666339368,0.002,59928.0,59907.0,0.23133903]
[1726666339609,0.166901,59916.0,59910.0,0.166916]
[1726666339842,0.333786,59919.0,59912.0,0.166911]
[1726666340084,0.333786,59919.0,59910.0,0.333833]
[1726666340085,0.333806,59915.0,59910.0,0.0675]
[1726666340324,0.500725,59913.0,59910.0,0.0675]
[1726666340559,0.166895,59918.0,59910.0,0.0675]
[1726666340780,0.001646,59920.0,59911.0,0.333828]
[1726666341031,0.001646,59920.0,59910.0,0.236416]
[1726666341032,0.166901,59916.0,59910.0,0.236416]
[1726666341249,0.166895,59918.0,59911.0,0.0675]
[1726666341498,0.001646,59920.0,59910.0,0.07283767]
[1726666341714,0.166894,59919.0,59914.0,0.166904]
[1726666341979,0.001646,59920.0,59917.0,0.166895]
[1726666342220,0.001646,59920.0,59918.0,0.00333746]
[1726666342480,0.001646,59920.0,59919.0,0.00333747]
[1726666343050,0.001646,59920.0,59919.0,0.83779447]
[1726666343295,0.001646,59920.0,59919.0,1.4329165]
[1726666343549,0.001646,59920.0,59919.0,1.1004825]
[1726666343803,0.001646,59920.0,59919.0,1.4342655]
[1726666344067,0.335657,59942.0,59923.0,0.03]
[1726666344068,0.333657,59942.0,59923.0,0.03]
[1726666344322,0.5061946,59976.0,59919.0,0.4618927]
[1726666344323,1.00197891,59939.0,59933.0,0.56504303]
[1726666344574,1.00197891,59939.0,59925.0,0.06]
[1726666344575,0.33359,59954.0,59925.0,0.06]
[1726666344576,0.0051391,59948.0,59926.0,0.03]
[1726666344812,0.166849,59935.0,59929.0,0.03]
[1726666345055,0.16305367,59947.0,59929.0,0.03]
[1726666345341,0.333665,59941.0,59929.0,0.0975]
[1726666345601,0.16305367,59947.0,59929.0,0.0675]
[1726666345602,0.166848,59935.0,59929.0,0.0675]
[1726666345867,0.002,59941.0,59929.0,0.0675]
[1726666346133,0.166861,59930.0,59929.0,0.0675]
[1726666346406,0.002,59938.0,59929.0,0.0675]
[1726666346683,0.166854,59933.0,59929.0,0.0685]
[1726666346945,0.16305367,59940.0,59929.0,0.0675]
[1726666346946,0.166845,59936.0,59929.0,0.0675]
[1726666347136,0.23133903,59950.0,59929.0,0.0675]
[1726666347137,0.02617703,59941.0,59930.0,0.00333674]
[1726666347415,0.03117703,59941.0,59931.0,0.333716]
[1726666347652,0.0031391,59948.0,59938.0,0.23133903]
[1726666347920,0.0031391,59948.0,59943.0,0.166825]
[1726666348183,0.0031391,59948.0,59944.0,0.00333585]
[1726666348458,0.0031391,59948.0,59944.0,0.07083585]
[1726666348702,0.166819,59945.0,59944.0,0.0675]
[1726666349194,0.166815,59947.0,59944.0,0.0675]
[1726666349429,0.333634,59946.0,59944.0,0.0675]
[1726666349671,0.0031391,59948.0,59944.0,0.0675]
[1726666350399,0.1699511,59948.0,59945.0,0.00333585]
[1726666350640,0.166818,59946.0,59944.0,0.0675]
[1726666350845,0.166818,59946.0,59944.0,0.0725]
[1726666351388,0.0031391,59948.0,59944.0,0.0675]
[1726666351389,0.1699521,59948.0,59944.0,0.0675]
[1726666351638,0.02617336,59946.0,59944.0,0.0735]
[1726666352122,0.0041391,59948.0,59946.0,0.196816]
[1726666352361,0.0041391,59948.0,59944.0,0.0735]
[1726666352604,0.1709511,59948.0,59946.0,0.0675]
[1726666352855,0.1709511,59948.0,59944.0,0.006]
[1726666352856,0.0041391,59948.0,59944.0,0.0735]
[1726666353107,0.0031391,59948.0,59944.0,0.0675]
[1726666353376,0.001,59946.0,59944.0,0.0745]
[1726666353910,0.02617082,59947.0,59944.0,0.0675]
[1726666354143,0.0041391,59948.0,59946.0,0.007]
[1726666354377,0.0031391,59948.0,59947.0,0.00333574]
[1726666354852,0.0031391,59948.0,59947.0,0.0675]
[1726666355109,0.5035721,59948.0,59947.0,0.0675]
[1726666355604,0.1699501,59948.0,59947.0,0.0675]
[1726666356084,0.5035721,59948.0,59947.0,0.0675]
[1726666357175,0.86336497,59948.0,59947.0,0.0675]
[1726666358417,1.36004064,59948.0,59947.0,0.0675]
[1726666358667,1.33386977,59948.0,59947.0,0.0675]
[1726666358914,0.1699501,59948.0,59947.0,0.0675]
[1726666359154,0.5035721,59948.0,59947.0,0.0675]
[1726666359415,1.1708161,59948.0,59947.0,0.0675]
[1726666359673,1.00024777,59948.0,59947.0,0.0675]
[1726666359939,1.00124777,59948.0,59947.0,0.0745]
[1726666360196,0.8371941,59948.0,59947.0,0.0675]
[1726666360467,0.166843,59937.0,59932.0,0.03]
[1726666360705,0.002,59943.0,59928.0,0.03]
[1726666360946,0.0031391,59948.0,59928.0,0.03]
[1726666360947,0.333683,59938.0,59928.0,0.03]
[1726666361203,0.166844,59936.0,59930.0,0.16686]
[1726666361444,0.166842,59937.0,59930.0,0.16686]
[1726666361678,0.166848,59935.0,59928.0,0.196866]
[1726666362123,0.166848,59935.0,59929.0,0.166862]
[1726666362390,0.167843,59937.0,59930.0,0.166861]
[1726666362676,0.001,59937.0,59934.0,0.166848]
[1726666362924,0.001,59937.0,59936.0,0.166844]
[1726666363176,0.02617435,59941.0,59936.0,0.401189]
[1726666363413,0.19300535,59941.0,59937.0,0.00333614]
[1726666363669,0.166836,59939.0,59937.0,0.07083614]
[1726666363915,0.4803391,59948.0,59937.0,0.0675]
[1726666364154,0.4803391,59948.0,59937.0,0.07083606]
[1726666364155,0.166839,59938.0,59937.0,0.07083606]
[1726666364409,0.16505367,59947.0,59937.0,0.07083606]
[1726666364690,0.834195,59938.0,59937.0,0.07083613]
[1726666364949,1.66660467,59938.0,59937.0,0.0745]
[1726666365215,1.66660467,59938.0,59937.0,0.007]
[1726666366477,0.166885,59922.0,59916.0,0.196899]
[1726666366736,0.166881,59923.0,59918.0,0.03]
[1726666366974,0.166893,59919.0,59914.0,0.03]
[1726666367217,0.166891,59919.0,59918.0,0.0675]
[1726666367457,0.166891,59919.0,59914.0,0.03]
[1726666367458,0.500709,59915.0,59914.0,0.0675]
[1726666367706,0.166912,59912.0,59908.0,0.06]
[1726666367926,0.166912,59912.0,59907.0,0.03]
[1726666367927,0.166913,59912.0,59907.0,0.03]
[1726666368153,0.001,59923.0,59908.0,0.03]
[1726666368382,0.002,59926.0,59907.0,0.19305367]
[1726666368607,0.166909,59913.0,59908.0,0.1]
[1726666368832,0.166909,59913.0,59908.0,0.13]
[1726666369062,0.166909,59913.0,59908.0,0.1975]
[1726666369314,0.333795,59917.0,59909.0,0.166917]
[1726666369634,0.166901,59916.0,59909.0,0.166917]
[1726666369764,0.166895,59918.0,59912.0,0.16691]
[1726666369984,0.166895,59918.0,59912.0,0.23774758]
[1726666370236,0.166895,59918.0,59912.0,0.07083758]
[1726666370461,0.333775,59921.0,59912.0,0.23774658]
[1726666370462,0.001,59913.0,59912.0,0.23774658]
[1726666370707,0.001,59913.0,59912.0,0.07083758]
[1726666370923,0.333775,59921.0,59912.0,0.0675]
[1726666371151,0.16505367,59925.0,59912.0,0.0675]
[1726666371152,0.166903,59915.0,59912.0,0.0675]
[1726666371400,0.166907,59914.0,59912.0,0.0675]
[1726666371635,0.001,59918.0,59912.0,0.24141]
[1726666371861,0.166905,59915.0,59912.0,0.0745]
[1726666372120,0.001,59918.0,59912.0,0.0745]
[1726666372121,0.166898,59917.0,59912.0,0.0745]
[1726666372355,0.333803,59916.0,59912.0,0.0745]
[1726666372593,0.333817,59913.0,59912.0,0.0745]
[1726666372818,0.834542,59913.0,59912.0,0.0745]
[1726666373054,1.168359,59913.0,59912.0,0.0745]
[1726666373559,1.168359,59913.0,59912.0,0.0675]
[1726666373790,1.168359,59913.0,59912.0,0.0725]
[1726666374029,1.66722967,59913.0,59912.0,0.0675]
[1726666374477,1.66722967,59913.0,59912.0,0.0705]
[1726666374715,1.66722967,59913.0,59912.0,0.0675]
[1726666376356,1.33341267,59913.0,59912.0,0.0675]
[1726666377387,1.3596006,59913.0,59912.0,0.0675]
[1726666377825,1.19454693,59913.0,59912.0,0.0675]
[1726666378046,1.19654693,59913.0,59912.0,0.0675]
[1726666378269,1.19454693,59913.0,59912.0,0.0675]
[1726666378514,0.500725,59913.0,59912.0,0.0675]
[1726666378751,0.166908,59913.0,59912.0,0.0675]
[1726666378975,0.02618764,59929.0,59915.0,0.166902]
[1726666379201,0.16305367,59925.0,59916.0,0.00333732]
[1726666379472,0.5007,59916.0,59915.0,0.0675]
[1726666379725,0.333758,59924.0,59915.0,0.0675]
[1726666379726,0.333785,59919.0,59915.0,0.0675]
[1726666379977,0.333755,59925.0,59916.0,0.00333737]
[1726666380212,0.333755,59925.0,59916.0,0.07083737]
[1726666380480,0.014,59926.0,59916.0,0.07083737]
[1726666380739,0.166882,59923.0,59917.0,0.166896]
[1726666380987,0.166879,59924.0,59919.0,0.166891]
[1726666381236,0.33373,59929.0,59920.0,0.166888]
[1726666381487,0.333717,59932.0,59920.0,0.0708371]
[1726666381736,0.333718,59931.0,59920.0,0.4046101]
[1726666381973,0.001642,59938.0,59924.0,0.333755]
[1726666382206,0.001642,59938.0,59925.0,0.33708566]
[1726666382207,0.35987678,59935.0,59925.0,0.33708566]
[1726666382438,0.19302878,59935.0,59926.0,0.333743]
[1726666382668,0.19302878,59935.0,59927.0,0.00333671]
[1726666382669,0.166854,59933.0,59927.0,0.00333671]
[1726666382904,0.02618078,59935.0,59928.0,0.00333676]
[1726666383150,0.02618078,59935.0,59927.0,0.401238]
[1726666383151,0.166853,59933.0,59927.0,0.401238]
[1726666383410,0.166864,59929.0,59928.0,0.0675]
[1726666383647,0.16686,59931.0,59928.0,0.0675]
[1726666383914,0.333706,59933.0,59928.0,0.0675]
[1726666384174,0.335322,59938.0,59929.0,0.333727]
[1726666384175,0.0020327,59934.0,59929.0,0.333727]
[1726666384420,0.0020327,59934.0,59928.0,0.0675]
[1726666384676,0.0020327,59934.0,59930.0,0.333721]
[1726666384926,0.0020327,59934.0,59933.0,0.166852]
[1726666385176,0.0020327,59934.0,59933.0,0.50389338]
[1726666385418,0.0020327,59934.0,59933.0,0.57139338]
[1726666386148,0.0020327,59934.0,59933.0,0.90509838]
[1726666387378,0.0020327,59934.0,59933.0,1.30893412]
[1726666387593,0.0020327,59934.0,59933.0,1.30793412]
[1726666387819,0.0020327,59934.0,59933.0,1.3079351]
[1726666388042,0.0030327,59934.0,59933.0,1.3149351]
[1726666388275,0.0030327,59934.0,59933.0,1.26515205]
[1726666388520,0.001642,59938.0,59937.0,0.58830686]
[1726666388827,0.001642,59938.0,59937.0,1.0788899]
[1726666388941,0.001642,59938.0,59937.0,1.04683757]
[1726666389421,0.001646,59946.0,59945.0,0.196819]
[1726666389657,0.001546,59946.0,59945.0,0.42737267]
[1726666390850,0.001546,59946.0,59945.0,1.34355067]
[1726666391071,0.001546,59946.0,59945.0,1.44095067]
[1726666391310,0.001546,59946.0,59945.0,1.77458967]
[1726666391546,0.001546,59946.0,59945.0,1.44095067]
[1726666391771,0.001546,59946.0,59945.0,1.43395067]
[1726666392493,0.001546,59946.0,59945.0,1.76758967]
[1726666392952,0.001546,59946.0,59945.0,1.43395067]
[1726666393399,0.001546,59946.0,59945.0,1.78058967]
[1726666393624,0.001546,59946.0,59945.0,1.76758967]
[1726666394082,0.001546,59946.0,59945.0,1.78158967]